bitfinex-derivatives/quotes_ETHF0:USTF0_20240917
["timestamp","ask_amount","ask_price","bid_price","bid_amount"]
[1726560901653,0.8581,2312.9,2312.8,0.43239]
[1726560901858,3.2078,2313.2,2313.1,0.43234]
[1726560902258,3.2078,2313.2,2313.0,0.43234]
[1726560902563,3.2078,2313.2,2313.0,0.87274]
[1726560902873,4.4578,2313.2,2313.0,0.87274]
[1726560903389,4.4578,2313.2,2313.0,1.99473133]
[1726560904567,3.2078,2313.2,2313.1,0.43234]
[1726560904767,1.25,2313.5,2313.1,9.90299133]
[1726560905077,1.68227,2313.5,2313.2,0.8547]
[1726560905369,1.25,2313.5,2313.2,1.28702]
[1726560905573,1.68227,2313.5,2313.2,1.28702]
[1726560905961,1.25,2313.4,2313.2,0.8547]
[1726560906370,1.25,2313.4,2313.2,1.97669133]
[1726560906573,1.25,2313.3,2313.2,0.8547]
[1726560907564,1.25,2313.3,2313.2,1.28702]
[1726560907870,1.25,2313.3,2313.2,0.8547]
[1726560908261,0.4345,2313.4,2313.2,1.28702]
[1726560908457,1.25,2313.3,2313.2,1.28702]
[1726560908657,1.25,2313.3,2313.2,0.8547]
[1726560910463,1.25,2313.3,2313.2,0.4227]
[1726560910677,2.0839,2313.3,2313.2,0.4227]
[1726560913372,2.0839,2313.3,2313.2,1.54469133]
[1726560918772,2.5162,2313.3,2313.2,1.12199133]
[1726560918971,2.5162,2313.3,2313.1,1.12199133]
[1726560919173,2.5162,2313.3,2313.1,1.55433133]
[1726560919374,2.5162,2313.3,2313.1,1.12199133]
[1726560920788,0.43232,2313.2,2313.1,1.12199133]
[1726560920981,0.43232,2313.2,2313.1,2.88364175]
[1726560921172,2.51621,2313.3,2313.1,2.88364175]
[1726560921485,2.51621,2313.3,2313.2,1.12199133]
[1726560923289,0.43232,2313.2,2313.1,1.67957589]
[1726560923585,0.43232,2313.2,2313.1,3.44935475]
[1726560924574,2.0839,2313.3,2313.1,3.4495206]
[1726560924886,1.26621,2313.3,2313.2,1.12429159]
[1726560925088,2.51621,2313.3,2313.2,1.12429159]
[1726560925385,2.51621,2313.3,2313.2,2.88746971]
[1726560926493,2.51621,2313.3,2313.2,3.44948357]
[1726560926695,0.8339,2313.3,2313.2,3.44948357]
[1726560926895,0.4323,2313.3,2313.2,3.44948357]
[1726560927806,4.8901,2313.4,2313.2,3.44948357]
[1726560928003,4.89008,2313.4,2313.3,1.12430963]
[1726560928195,4.89008,2313.4,2313.3,1.52710963]
[1726560928892,4.89008,2313.4,2313.3,2.8874814]
[1726560929098,0.4323,2313.3,2313.2,1.12430963]
[1726560929297,2.0838,2313.3,2313.2,2.8876606]
[1726560929698,2.0838,2313.3,2313.2,2.88768419]
[1726560930000,2.0838,2313.3,2313.2,1.12430963]
[1726560930197,2.0838,2313.3,2313.2,2.88764932]
[1726560931107,5.2916,2313.3,2313.2,2.88764932]
[1726560931299,4.8593,2313.3,2313.2,2.88764932]
[1726560931497,3.6401,2313.3,2313.2,3.44964514]
[1726560932000,3.6401,2313.3,2313.2,1.76333969]
[1726560932200,3.6401,2313.3,2313.2,2.8876979]
[1726560932601,3.6401,2313.3,2313.2,3.44964514]
[1726560934007,3.6401,2313.3,2313.2,2.8879642]
[1726560934512,3.6401,2313.3,2313.2,2.88836755]
[1726560935211,3.6401,2313.3,2313.2,1.12462451]
[1726560935508,1.51312,2313.2,2313.1,1.12462451]
[1726560935734,8.33862,2313.2,2313.1,1.12462451]
[1726560937510,7.25782,2313.2,2313.1,1.12462451]
[1726560937815,6.00782,2313.2,2313.1,1.12462451]
[1726560938117,1.25,2313.4,2313.1,3.45057016]
[1726560938310,1.26968,2313.5,2313.3,1.12490754]
[1726560938515,3.2078,2313.6,2313.4,3.45028257]
[1726560938703,3.2078,2313.6,2313.5,2.88855765]
[1726560938908,3.2078,2313.6,2313.5,3.45018241]
[1726560939216,3.2078,2313.6,2313.5,3.45008828]
[1726560939424,4.4578,2313.6,2313.5,3.89128828]
[1726560939613,4.4578,2313.6,2313.5,3.89175611]
[1726560939814,4.4578,2313.6,2313.5,3.89176207]
[1726560940117,9.21244,2313.6,2313.5,1.12491014]
[1726560940414,1.08066,2313.5,2313.2,1.12491014]
[1726560940615,4.8901,2313.3,2313.2,1.12491014]
[1726560941118,9.2133,2313.3,2313.2,1.12491014]
[1726560941809,4.8901,2313.3,2313.2,1.12491014]
[1726560942012,4.8901,2313.3,2313.2,1.56611014]
[1726560942206,1.25,2313.4,2313.2,3.33108449]
[1726560942404,4.4578,2313.3,2313.2,0.81561559]
[1726560942602,4.4578,2313.3,2312.8,2.24840727]
[1726560942603,8.781,2313.3,2312.8,2.24840727]
[1726560942814,1.25,2313.0,2312.9,1.75732766]
[1726560943016,1.25,2313.0,2312.9,2.16022766]
[1726560943017,3.8088155,2313.0,2312.9,2.16022766]
[1726560943212,3.2078,2313.0,2312.9,2.16022766]
[1726560944018,3.2078,2313.0,2312.9,0.4029]
[1726560944317,3.2078,2313.0,2312.9,2.15789724]
[1726560947514,3.2078,2313.0,2312.9,2.15787802]
[1726560948413,3.64016,2313.0,2312.9,2.15787802]
[1726560949418,0.43236,2313.0,2312.9,2.15787802]
[1726560949619,3.64016,2313.0,2312.9,2.15787802]
[1726560950910,3.2078,2313.0,2312.9,2.15774867]
[1726560952122,3.64016,2313.0,2312.9,2.15774867]
[1726560953724,3.2078,2313.0,2312.9,2.15757356]
[1726560956318,7.96336,2313.0,2312.9,2.15757356]
[1726560956525,7.531,2313.0,2312.9,2.15757356]
[1726560957322,3.2078,2313.0,2312.9,2.15757356]
[1726560957723,3.64016,2313.0,2312.9,2.15757356]
[1726560958127,3.2078,2313.0,2312.9,2.15757356]
[1726560958532,1.68235,2313.1,2312.9,2.15757356]
[1726560958726,1.68235,2313.1,2313.0,1.75467356]
[1726560959431,6.00555,2313.1,2313.0,1.75467356]
[1726560960628,6.00555,2313.1,2313.0,1.75430057]
[1726560961427,6.00555,2313.1,2313.0,1.75429907]
[1726560961628,6.00555,2313.1,2313.0,1.75434416]
[1726560962123,6.00555,2313.1,2313.0,1.75428517]
[1726560962727,5.5732,2313.1,2313.0,1.75428517]
[1726560962926,3.2078,2313.3,2313.0,1.75405953]
[1726560963135,1.25,2313.5,2313.1,1.75405953]
[1726560963326,1.25,2313.5,2313.2,2.16265953]
[1726560963635,1.25,2313.5,2313.3,4.8381568]
[1726560963936,1.25,2313.5,2313.4,1.75290221]
[1726560964131,1.68226,2313.5,2313.4,2.18530221]
[1726560965024,1.25,2313.5,2313.4,2.18530221]
[1726560965221,5.5724,2313.5,2313.2,2.24840727]
[1726560965428,1.08065,2313.6,2313.0,2.24840727]
[1726560965429,0.43232,2313.2,2313.0,2.24840727]
[1726560965636,1.25,2313.2,2313.1,1.75281031]
[1726560966839,1.25,2313.2,2313.1,1.75347628]
[1726560968127,2.7,2313.2,2313.1,1.75347628]
[1726560968434,5.9078,2313.4,2313.1,1.75347628]
[1726560968627,3.2078,2313.4,2313.2,2.18578628]
[1726560968827,3.2078,2313.4,2313.3,3.02777628]
[1726560969026,3.2078,2313.4,2313.3,2.59547628]
[1726560969329,0.43228,2313.5,2313.3,2.59547628]
[1726560969525,0.43228,2313.5,2313.3,0.842]
[1726560970129,3.13228,2313.4,2313.3,0.842]
[1726560970433,2.7,2313.4,2313.3,1.75270537]
[1726560970729,2.7,2313.4,2313.2,0.4237]
[1726560970730,0.4323,2313.3,2313.2,0.4237]
[1726560971028,5.2008,2313.3,2313.2,2.17658563]
[1726560971533,0.8776,2313.3,2313.2,0.4237]
[1726560972034,6.34008,2313.4,2313.2,2.1766842]
[1726560972235,6.34008,2313.4,2313.2,0.4237]
[1726560972731,0.4323,2313.3,2313.2,0.4237]
[1726560972932,0.4323,2313.3,2313.2,2.17658508]
[1726560974930,0.4323,2313.3,2313.2,2.17682998]
[1726560975828,0.4323,2313.3,2313.0,2.24840727]
[1726560975829,0.43233,2313.2,2313.0,2.24840727]
[1726560976031,3.13233,2313.2,2313.1,1.75316718]
[1726560976535,3.13233,2313.2,2313.1,1.75327237]
[1726560978829,2.7,2313.2,2313.1,1.75327237]
[1726560980039,6.34012,2313.2,2313.1,1.75327237]
[1726560980226,0.43236,2313.0,2312.9,2.68340727]
[1726560980429,3.13236,2313.0,2312.9,2.18880963]
[1726560981231,3.13236,2313.0,2312.9,0.435]
[1726560981436,3.13236,2313.0,2312.9,2.18888844]
[1726560982541,2.7,2313.1,2312.9,2.18884805]
[1726560982734,2.7,2313.1,2313.0,1.75373221]
[1726560982939,3.13234,2313.1,2312.9,0.435]
[1726560983445,3.13234,2313.1,2313.0,1.75370639]
[1726560983446,2.7,2313.1,2313.0,1.75370639]
[1726560984530,3.13234,2313.1,2313.0,1.75370639]
[1726560984735,2.7,2313.1,2313.0,1.75385374]
[1726560986437,2.7,2313.1,2313.0,1.75452453]
[1726560988242,2.7,2313.1,2313.0,1.75400859]
[1726560990642,2.7,2313.1,2313.0,1.75390222]
[1726560991239,2.7,2313.1,2313.0,1.75388671]
[1726560991545,3.13234,2313.1,2313.0,1.75388671]
[1726560992943,2.7,2313.1,2313.0,1.75388671]
[1726560993945,1.68234,2313.1,2313.0,1.75388671]
[1726560995851,1.68234,2313.1,2313.0,1.75390659]
[1726560996247,1.68234,2313.1,2313.0,1.75391524]
[1726560998251,1.68234,2313.1,2313.0,1.75417061]
[1726560999149,1.68234,2313.1,2313.0,1.75416983]
[1726560999555,0.43236,2313.0,2312.9,0.435]
[1726560999749,0.43236,2313.0,2312.9,2.18945291]
[1726561000449,0.43241,2312.7,2312.6,2.24840727]
[1726561000639,1.68241,2312.7,2312.6,2.17193225]
[1726561000843,2.76345,2312.7,2312.6,1.75503225]
[1726561001043,1.51358,2312.5,2312.4,2.24840727]
[1726561001247,0.43249,2312.3,2312.2,0.4169]
[1726561001552,1.25,2312.3,2312.2,0.4169]
[1726561001741,1.68249,2312.3,2312.2,0.4169]
[1726561001948,3.13249,2312.3,2312.2,0.4169]
[1726561002551,3.13249,2312.3,2312.2,2.10529101]
[1726561002753,3.13249,2312.3,2312.1,1.68839101]
[1726561002943,3.13249,2312.3,2312.2,0.4169]
[1726561005657,0.43254,2312.0,2311.9,0.4123]
[1726561005852,0.43256,2311.9,2311.8,0.5369594]
[1726561006149,0.43256,2311.9,2311.6,2.50599101]
[1726561006150,0.4326,2311.7,2311.6,0.8176]
[1726561006359,2.48327948,2311.7,2311.6,0.8176]
[1726561006555,2.91587948,2311.7,2311.6,0.8176]
[1726561007348,2.48327948,2311.7,2311.6,0.8176]
[1726561007544,2.48327948,2311.7,2311.6,1.25022]
[1726561007749,2.48327948,2311.7,2311.6,0.8176]
[1726561007949,2.48327948,2311.7,2311.6,1.25022]
[1726561008849,2.7,2311.8,2311.7,0.43259]
[1726561009155,2.7,2311.8,2311.7,0.86959]
[1726561009655,2.7,2312.0,2311.9,0.43255]
[1726561010854,2.7,2312.2,2312.0,0.43254]
[1726561011157,2.7,2312.2,2312.1,1.2874]
[1726561011358,3.13251,2312.2,2312.1,1.2874]
[1726561012942,2.7,2312.2,2312.1,1.71992]
[1726561013147,2.7,2312.2,2312.1,1.2874]
[1726561013347,2.7,2312.2,2312.1,1.71992]
[1726561013746,3.13247,2312.4,2312.2,0.43249]
[1726561015155,2.7,2312.4,2312.2,0.43249]
[1726561015964,3.13247,2312.4,2312.2,0.43249]
[1726561016759,3.13247,2312.4,2312.1,1.71991]
[1726561017553,3.13247,2312.4,2312.2,0.4325]
[1726561020364,3.13248,2312.4,2312.2,0.4325]
[1726561020656,3.13248,2312.4,2312.1,1.71991]
[1726561020960,0.4325,2312.3,2312.1,1.2874]
[1726561021161,0.4325,2312.3,2312.1,1.71992]
[1726561021554,2.7,2312.2,2312.1,1.2874]
[1726561021752,2.7,2312.2,2312.1,1.71992]
[1726561021959,3.13251,2312.2,2312.1,1.2874]
[1726561022852,3.13251,2312.2,2312.1,0.8504]
[1726561023563,2.7,2312.2,2312.1,1.28292]
[1726561023965,0.43248,2312.4,2312.2,0.4325]
[1726561023966,2.7,2312.4,2312.2,0.4325]
[1726561024460,3.13247,2312.4,2312.3,0.4435]
[1726561025563,3.13247,2312.4,2312.1,1.28291]
[1726561025860,0.43249,2312.3,2312.1,1.28291]
[1726561026766,0.43251,2312.2,2312.1,0.8504]
[1726561027065,3.13251,2312.2,2312.1,0.8504]
[1726561027459,6.34031,2312.2,2312.1,0.8504]
[1726561027857,6.34031,2312.2,2312.0,0.4435]
[1726561027858,0.43253,2312.1,2311.9,0.43255]
[1726561028062,3.13254,2312.0,2311.9,0.4128]
[1726561029764,2.7,2312.0,2311.9,0.4128]
[1726561030661,3.13254,2312.0,2311.9,0.4128]
[1726561030861,2.7,2312.0,2311.9,0.4128]
[1726561031071,3.13254,2312.0,2311.9,0.4128]
[1726561031966,0.43256,2311.9,2311.7,0.8785]
[1726561032156,0.43256,2311.9,2311.7,0.4423]
[1726561032556,3.2078,2311.9,2311.7,0.4423]
[1726561032762,3.6115,2311.9,2311.7,0.4423]
[1726561032968,2.7,2311.8,2311.7,0.4423]
[1726561033356,2.7,2311.8,2311.7,0.8749]
[1726561033865,2.7,2311.8,2311.7,0.4423]
[1726561034765,2.7,2311.8,2311.7,0.8749]
[1726561035269,3.13258,2311.8,2311.7,0.4423]
[1726561036062,0.4326,2311.7,2311.5,0.8521]
[1726561036272,0.4326,2311.7,2311.5,1.28473]
[1726561036466,2.7,2311.6,2311.5,1.28473]
[1726561037171,0.4326,2311.7,2311.5,1.28473]
[1726561037363,3.1326,2311.8,2311.6,0.43262]
[1726561037563,0.4326,2311.7,2311.6,0.43262]
[1726561037966,2.7,2311.8,2311.5,1.28473]
[1726561038774,0.4326,2311.7,2311.5,1.28473]
[1726561039269,2.7,2311.8,2311.5,1.28472]
[1726561039874,0.43261,2311.7,2311.5,1.28472]
[1726561040775,0.43261,2311.7,2311.5,1.28473]
[1726561041181,3.13262,2311.6,2311.5,0.8521]
[1726561041476,3.13262,2311.6,2311.5,0.4051]
[1726561041868,6.34042,2311.6,2311.5,0.4051]
[1726561042062,5.9078,2311.6,2311.5,0.83774]
[1726561042571,2.7,2311.6,2311.5,0.83774]
[1726561042971,2.7,2311.8,2311.5,0.4051]
[1726561043272,4.28919,2312.0,2311.5,0.4051]
[1726561043273,3.1326,2311.7,2311.5,0.4051]
[1726561043674,2.7,2311.7,2311.5,0.4051]
[1726561043875,3.1326,2311.7,2311.5,0.83773]
[1726561044781,2.7,2311.7,2311.6,0.43262]
[1726561045373,3.1326,2311.7,2311.6,0.43262]
[1726561045869,2.7,2311.7,2311.6,0.43262]
[1726561046474,3.1326,2311.7,2311.5,2.52612101]
[1726561046700,3.1326,2311.7,2311.5,0.83773]
[1726561048076,1.68262,2311.6,2311.5,0.4051]
[1726561048475,0.43264,2311.5,2311.4,2.12539101]
[1726561048680,0.43264,2311.5,2311.4,0.437]
[1726561051377,1.68263,2311.6,2311.4,0.437]
[1726561051579,0.43264,2311.5,2311.4,0.437]
[1726561052279,0.43265,2311.4,2311.3,0.4384]
[1726561052489,0.43268,2311.3,2311.1,2.12109101]
[1726561052698,1.25,2311.2,2311.1,0.8435]
[1726561052878,1.25,2311.2,2311.1,2.58913871]
[1726561053191,1.25,2311.2,2311.1,3.02178721]
[1726561053485,1.25,2311.2,2311.1,2.58907721]
[1726561054277,1.68269,2311.2,2311.1,0.8435]
[1726561054887,1.25,2311.2,2311.1,0.8435]
[1726561055480,1.25,2311.2,2311.1,0.4108]
[1726561055694,1.25,2311.2,2311.1,0.828]
[1726561057694,1.68269,2311.2,2311.1,0.4108]
[1726561058387,1.68269,2311.2,2310.9,0.83724]
[1726561058586,0.43269,2311.2,2311.0,0.4141]
[1726561059292,0.4327,2311.2,2311.0,0.4141]
[1726561060096,1.68271,2311.1,2311.0,0.4141]
[1726561060394,1.25,2311.1,2311.0,0.4141]
[1726561060589,1.68271,2311.1,2311.0,0.4141]
[1726561060788,1.25,2311.1,2311.0,0.4141]
[1726561061802,0.21605018,2311.4,2311.0,0.4141]
[1726561061987,1.25,2311.2,2311.0,0.84682]
[1726561062183,1.25,2311.1,2311.0,0.84682]
[1726561062789,1.25,2311.1,2311.0,0.4141]
[1726561064089,1.68271,2311.1,2311.0,0.4141]
[1726561065991,0.43274,2311.0,2310.7,0.43277]
[1726561066192,0.43273,2311.1,2310.8,1.2872]
[1726561066397,1.25,2310.9,2310.8,1.2872]
[1726561067484,1.25,2310.9,2310.8,1.71997]
[1726561067889,1.25,2310.9,2310.8,1.2872]
[1726561069197,3.85810828,2311.2,2310.8,1.2872]
[1726561069498,3.85810828,2311.2,2311.0,0.43272]
[1726561069499,0.4327,2311.2,2311.0,0.43272]
[1726561069698,1.25,2311.1,2311.0,0.43272]
[1726561069903,0.60053297,2311.1,2311.0,0.43272]
[1726561070300,1.03324297,2311.1,2310.9,3.64054]
[1726561070492,1.25,2311.0,2310.9,3.64054]
[1726561071593,1.25,2311.0,2310.9,3.2078]
[1726561073192,1.25,2311.0,2310.8,1.55824671]
[1726561073393,1.25,2311.0,2310.9,0.4249]
[1726561075705,1.25,2311.0,2310.9,0.85765]
[1726561076805,1.25,2311.0,2310.9,0.4249]
[1726561077301,1.68273,2311.0,2310.9,0.4249]
[1726561077498,1.25,2311.0,2310.9,0.4249]
[1726561077706,1.68273,2311.0,2310.9,0.4249]
[1726561078708,1.25,2311.0,2310.9,0.4249]
[1726561080308,1.68273,2311.0,2310.9,0.4249]
[1726561081506,1.68273,2311.0,2310.8,0.4421]
[1726561081910,1.25,2311.0,2310.8,0.4421]
[1726561082112,1.68273,2311.0,2310.8,0.4421]
[1726561082507,0.43275,2310.9,2310.8,0.4421]
[1726561082805,6.00994,2311.0,2310.7,0.4259]
[1726561082999,1.25,2310.8,2310.7,0.4259]
[1726561083704,1.25,2310.8,2310.7,0.8592]
[1726561091412,1.25,2310.8,2310.6,1.55828671]
[1726561092114,1.25,2310.8,2310.7,0.43279]
[1726561092315,1.25,2310.8,2310.7,1.12548671]
[1726561094016,6.00997,2310.8,2310.5,1.98680671]
[1726561094218,1.25,2310.6,2310.5,1.98680671]
[1726561094422,1.25,2310.6,2310.5,0.4285]
[1726561094716,1.25,2310.6,2310.5,0.86132]
[1726561095322,1.25,2310.6,2310.5,0.4285]
[1726561098322,1.25,2310.6,2310.5,1.55398671]
[1726561106631,1.6828,2310.6,2310.5,1.55398671]
[1726561108241,1.25,2310.6,2310.5,1.55398671]
[1726561108641,1.6828,2310.6,2310.5,1.55398671]
[1726561112447,1.6828,2310.6,2310.5,0.4285]
[1726561120146,3.2078,2310.8,2310.5,7.9643]
[1726561120452,1.25,2311.0,2310.7,1.68839101]
[1726561120657,3.64052,2311.1,2310.9,1.68839101]
[1726561120949,1.68275,2311.0,2310.8,2.49338691]
[1726561121142,1.68274,2311.0,2310.8,2.49338691]
[1726561121340,1.25,2311.0,2310.8,2.49338691]
[1726561121548,1.68274,2311.0,2310.8,2.49338691]
[1726561121757,1.68274,2311.0,2310.9,2.87520881]
[1726561121952,1.68274,2311.0,2310.9,1.12888691]
[1726561124459,1.25,2311.0,2310.9,1.12888691]
[1726561126050,1.25,2311.0,2310.9,3.43499323]
[1726561126252,1.25,2311.0,2310.9,10.96999323]
[1726561126453,0.5555,2311.0,2310.9,11.4077301]
[1726561126648,0.5555,2311.0,2310.9,9.71435222]
[1726561126850,0.2216019,2311.3,2310.9,11.53000949]
[1726561127049,1.25,2311.2,2311.1,0.43271]
[1726561127248,1.25,2311.2,2311.1,2.17851065]
[1726561127447,1.25,2311.2,2311.1,3.87090913]
[1726561127660,1.25,2311.2,2311.1,2.17851065]
[1726561128358,1.25,2311.2,2311.1,3.87043028]
[1726561128759,1.25,2311.2,2311.1,3.86944734]
[1726561129453,1.25,2311.2,2311.1,4.28954734]
[1726561129856,0.60057595,2311.2,2311.1,4.28954734]
[1726561131759,3.24852788,2311.7,2311.3,0.43266]
[1726561131760,0.43262,2311.6,2311.3,0.43266]
[1726561131957,1.25,2311.5,2311.4,0.8818]
[1726561132157,1.68264,2311.5,2311.4,0.8818]
[1726561134158,1.25,2311.5,2311.4,0.8818]
[1726561137175,1.68264,2311.5,2311.4,0.8818]
[1726561140769,1.25,2311.5,2311.4,0.8818]
[1726561141161,1.68264,2311.5,2311.4,0.8818]
[1726561143173,0.43267,2311.4,2311.2,3.6628]
[1726561143368,1.68267,2311.3,2311.2,3.6628]
[1726561143676,2.15647,2311.3,2311.2,3.6628]
[1726561144269,1.25,2311.4,2311.3,0.43266]
[1726561144664,1.25,2311.4,2311.2,4.09548]
[1726561145366,1.25,2311.4,2311.3,0.43267]
[1726561145870,1.68265,2311.4,2311.3,0.43267]
[1726561146068,1.25,2311.4,2311.3,0.43267]
[1726561146372,1.68265,2311.4,2311.3,0.43267]
[1726561146771,1.25,2311.4,2311.3,0.43267]
[1726561147164,1.68265,2311.4,2311.2,0.88768]
[1726561147364,1.68265,2311.4,2311.3,0.43267]
[1726561147564,1.68265,2311.4,2311.2,0.455]
[1726561147772,1.25,2311.4,2311.3,0.43267]
[1726561147972,1.68265,2311.4,2311.3,0.43267]
[1726561148474,1.68265,2311.4,2311.2,0.88769]
[1726561149787,1.25,2311.4,2311.3,0.43267]
[1726561150379,1.25,2311.4,2311.3,4.75907]
[1726561151770,1.25,2311.4,2311.3,0.43267]
[1726561152177,2.12995,2311.4,2311.3,0.43267]
[1726561152375,1.6973,2311.4,2311.3,0.43267]
[1726561153172,1.25,2311.4,2311.3,0.43267]
[1726561154179,1.68267,2311.4,2311.2,4.09548]
[1726561155081,0.43,2311.3,2311.2,4.09548]
[1726561156275,1.68,2311.3,2311.2,3.6628]
[1726561156479,1.68,2311.3,2311.2,4.09549]
[1726561160106,1.68267,2311.4,2311.2,4.09549]
[1726561160472,1.25,2311.4,2311.3,0.43267]
[1726561163785,1.25,2311.4,2311.3,1.55816821]
[1726561164179,1.25,2311.4,2311.3,3.29851395]
[1726561164380,1.25,2311.4,2311.3,1.55816821]
[1726561164679,1.25,2311.4,2311.3,3.86127502]
[1726561164880,1.25,2311.4,2311.3,3.86202729]
[1726561167189,1.25,2311.4,2311.3,3.86315275]
[1726561167385,1.25,2311.4,2311.3,2.17490543]
[1726561168491,1.25,2311.4,2311.3,4.42590186]
[1726561168686,1.25,2311.4,2311.3,2.17490543]
[1726561168895,1.25,2311.4,2311.3,0.43267]
[1726561169084,1.25,2311.4,2311.3,2.17550012]
[1726561169886,1.25,2311.4,2311.3,4.42649655]
[1726561170385,1.25,2311.4,2311.3,7.91387581]
[1726561170580,0.43263,2311.6,2311.4,0.43265]
[1726561170788,1.25,2311.5,2311.4,2.12600371]
[1726561171091,1.68264,2311.5,2311.4,3.86968118]
[1726561171496,1.25,2311.5,2311.4,2.17632747]
[1726561171687,1.25,2311.5,2311.4,2.62292747]
[1726561171888,1.25,2311.5,2311.4,4.31700183]
[1726561172081,1.68264,2311.5,2311.4,2.62363621]
[1726561172281,1.68264,2311.5,2311.4,4.31770578]
[1726561172518,1.68264,2311.5,2311.4,2.62363621]
[1726561172697,1.68264,2311.5,2311.4,4.87463264]
[1726561173491,1.25,2311.5,2311.4,4.87463264]
[1726561173892,1.25,2311.5,2311.4,8.36431501]
[1726561174193,1.25,2311.5,2311.4,8.36469167]
[1726561177097,1.25,2311.5,2311.4,3.13024643]
[1726561177395,1.25,2311.5,2311.4,8.36371788]
[1726561177988,1.25,2311.6,2311.5,0.43264]
[1726561178196,1.25,2311.6,2311.5,3.04003048]
[1726561179198,1.68262,2311.6,2311.5,3.04003048]
[1726561179400,1.68262,2311.6,2311.5,3.03990734]
[1726561179599,1.25,2311.6,2311.5,3.03990734]
[1726561179798,1.68262,2311.6,2311.5,3.03990734]
[1726561180199,1.68262,2311.6,2311.5,3.03979823]
[1726561180496,1.25,2311.6,2311.5,3.03979823]
[1726561180704,1.68262,2311.6,2311.5,3.03979823]
[1726561181310,1.25,2311.6,2311.5,3.03979823]
[1726561182216,1.25,2311.6,2311.5,3.03972787]
[1726561182622,1.68262,2311.6,2311.5,4.73364338]
[1726561182817,1.68262,2311.6,2311.5,3.03972787]
[1726561182818,1.25,2311.6,2311.5,3.03972787]
[1726561183318,1.25,2311.6,2311.5,4.73361824]
[1726561184413,1.68262,2311.6,2311.5,4.73361955]
[1726561184616,1.25,2311.6,2311.5,4.73361955]
[1726561185017,0.43262,2311.6,2311.5,4.30097955]
[1726561185212,1.68262,2311.6,2311.5,3.87897955]
[1726561186326,1.68262,2311.6,2311.5,4.31161955]
[1726561187908,1.68262,2311.6,2311.5,3.87897955]
[1726561188714,1.68262,2311.6,2311.5,3.43807955]
[1726561189429,1.25,2311.6,2311.5,3.87071955]
[1726561189628,1.25,2311.6,2311.5,3.8709091]
[1726561189820,1.68262,2311.6,2311.5,2.17701873]
[1726561190224,1.68262,2311.6,2311.5,3.87100072]
[1726561191318,0.43262,2311.6,2311.5,2.17701873]
[1726561192027,0.43262,2311.6,2311.5,2.17694509]
[1726561192528,0.43262,2311.6,2311.5,3.4382605]
[1726561192728,0.43262,2311.6,2311.5,3.43826129]
[1726561193127,0.43262,2311.6,2311.5,1.74430509]
[1726561193314,1.46728963,2311.7,2311.5,3.87132047]
[1726561193315,1.89989963,2311.7,2311.5,3.87132047]
[1726561193524,1.89989963,2311.7,2311.6,3.43868047]
[1726561193929,1.89989963,2311.7,2311.6,3.43934911]
[1726561194422,1.89989963,2311.7,2311.6,3.43933388]
[1726561194822,1.89989963,2311.7,2311.6,3.86843388]
[1726561195023,1.89989963,2311.7,2311.6,5.6132926]
[1726561195529,1.89989963,2311.7,2311.6,5.61332191]
[1726561195738,1.89989963,2311.7,2311.6,5.61332107]
[1726561196031,1.89989963,2311.7,2311.6,5.6131183]
[1726561196232,1.89989963,2311.7,2311.6,5.61273083]
[1726561196531,1.89989963,2311.7,2311.6,3.30268951]
[1726561197024,1.89989963,2311.7,2311.6,3.30270114]
[1726561197529,1.89989963,2311.7,2311.6,3.86778396]
[1726561197924,1.89989963,2311.7,2311.6,3.86774192]
[1726561198932,1.68261,2311.7,2311.6,3.86774192]
[1726561199632,1.89681469,2311.7,2311.6,3.86774192]
[1726561200336,3.2078,2312.1,2311.6,3.86774192]
[1726561200631,1.46219074,2312.2,2312.0,0.43254]
[1726561200828,1.25,2312.2,2312.1,4.15440909]
[1726561201032,1.68251,2312.2,2312.1,4.72001714]
[1726561201223,1.68251,2312.2,2312.1,3.02565012]
[1726561201426,1.90037185,2312.2,2312.1,2.41095293]
[1726561201730,0.8765,2312.5,2312.1,2.41095293]
[1726561201930,1.68247,2312.4,2312.3,1.12845293]
[1726561202433,1.68247,2312.4,2312.2,1.56096293]
[1726561202932,1.68247,2312.4,2312.2,1.56095293]
[1726561203329,1.25,2312.4,2312.2,1.56095293]
[1726561203528,1.25,2312.4,2312.3,1.56094293]
[1726561203730,1.25,2312.5,2312.4,0.43247]
[1726561203929,1.25,2312.5,2312.4,3.30005822]
[1726561204240,1.68245,2312.5,2312.4,2.86758831]
[1726561204639,1.68245,2312.5,2312.3,1.55934336]
[1726561205924,1.25,2312.5,2312.3,1.12686336]
[1726561206131,1.25,2312.5,2312.4,0.43247]
[1726561206533,1.25,2312.5,2312.3,0.43248]
[1726561206732,1.25,2312.5,2312.4,0.43247]
[1726561209536,0.21435528,2312.7,2312.5,0.43244]
[1726561209537,1.25,2312.7,2312.5,0.43244]
[1726561209738,1.68241,2312.7,2312.6,0.8477]
[1726561210128,1.25,2312.7,2312.6,0.8477]
[1726561210330,1.68241,2312.7,2312.6,0.8477]
[1726561211237,1.68241,2312.7,2312.6,0.4162]
[1726561211433,1.68241,2312.7,2312.1,1.22786336]
[1726561211434,14.7818,2312.7,2312.1,1.22786336]
[1726561211737,1.68251,2312.2,2312.0,0.86764]
[1726561212339,1.25,2312.2,2312.0,0.86764]
[1726561213737,1.68251,2312.2,2312.0,0.86764]
[1726561213929,1.25,2312.2,2312.0,0.86764]
[1726561214142,1.68251,2312.2,2312.0,0.86764]
[1726561214337,1.25,2312.2,2312.0,0.86764]
[1726561215331,1.68251,2312.2,2312.0,0.86764]